bitfinex/quotes_SOLUSD_20220212
["timestamp","ask_amount","ask_price","bid_price","bid_amount"]
[1644671646513,0.25,95.467,95.407,2.38366791]
[1644671646713,0.25,95.467,95.408,28.5019]
[1644671646912,1.48439621,95.482,95.41,15.7206]
[1644671647109,1.48439621,95.483,95.411,5.238]
[1644671647310,0.25,95.481,95.411,5.488]
[1644671647508,1.48439621,95.483,95.411,5.488]
[1644671647710,1.48439621,95.483,95.412,2.38366791]
[1644671647910,1.48439621,95.486,95.42,15.7185]
[1644671648110,1.48439621,95.485,95.421,24.5519]
[1644671648312,1.48439621,95.487,95.421,27.18556791]
[1644671648516,1.48439621,95.487,95.422,2.38366791]
[1644671648715,1.48439621,95.488,95.423,0.25]
[1644671648914,0.25,95.486,95.423,0.25]
[1644671649114,0.25,95.487,95.424,2.38366791]
[1644671649317,5.238,95.511,95.431,104.9]
[1644671649615,5.237,95.561,95.44,15.14]
[1644671649814,8.20379241,95.577,95.441,0.25]
[1644671650015,5.235,95.561,95.441,2.63366791]
[1644671650216,5.235,95.561,95.442,49.86406385]
[1644671650415,5.235,95.561,95.443,47.2062]
[1644671650715,5.235,95.561,95.45,15.7123]
[1644671650917,5.235,95.561,95.46,15.14]
[1644671651119,0.25,95.56,95.461,59.48145834]
[1644671651317,5.235,95.559,95.461,64.71545834]
[1644671651522,0.25,95.566,95.461,59.48145834]
[1644671651719,8.16966036,95.565,95.461,59.48145834]
[1644671651918,7.61766791,95.565,95.461,59.48145834]
[1644671652122,0.25,95.564,95.461,59.48145834]
[1644671652319,5.234,95.563,95.461,59.48145834]
[1644671652519,7.61766791,95.563,95.461,59.48145834]
[1644671652754,15.7148,95.54,95.462,0.25]
[1644671653120,0.25,95.539,95.462,0.25]
[1644671655926,5.235,95.538,95.462,0.25]
[1644671656129,15.7164,95.53,95.461,40.22635834]
[1644671656327,25.03934891,95.528,95.461,34.99235834]
[1644671656533,5.235,95.527,95.461,34.99235834]
[1644671656727,5.485,95.527,95.434,24.9893]
[1644671657731,15.7179,95.52,95.444,43.01188363]
[1644671657937,5.236,95.519,95.444,43.01188363]
[1644671658129,5.486,95.519,95.444,43.01188363]
[1644671658331,0.25,95.518,95.444,43.01188363]
[1644671658529,5.236,95.517,95.444,43.01188363]
[1644671658732,0.25,95.516,95.444,43.01188363]
[1644671658931,5.236,95.515,95.444,43.01188363]
[1644671659330,0.25,95.514,95.444,43.01188363]
[1644671659731,15.7204,95.51,95.444,43.01188363]
[1644671659930,5.236,95.509,95.444,43.01188363]
[1644671660130,5.486,95.509,95.444,43.01188363]
[1644671661740,15.7213,95.5,95.444,43.01188363]
[1644671661934,5.237,95.499,95.444,43.01188363]
[1644671662131,5.487,95.499,95.444,43.01188363]
[1644671664329,0.25,95.499,95.444,43.01188363]
[1644671667135,5.487,95.499,95.444,43.01188363]
[1644671668140,0.25,95.499,95.445,5.237]
[1644671668339,0.25,95.519,95.445,5.487]
[1644671668738,0.25,95.534,95.445,5.487]
[1644671668937,29.3040667,95.534,95.445,5.487]
[1644671669138,29.3040667,95.534,95.446,24.6603]
[1644671669340,5.236,95.533,95.447,0.25]
[1644671669541,15.7162,95.53,95.447,0.25]
[1644671669739,5.486,95.529,95.447,0.25]
[1644671669939,5.236,95.529,95.447,0.25]
[1644671672343,0.25,95.528,95.448,5.236]
[1644671672543,5.236,95.527,95.448,5.236]
[1644671672743,15.7177,95.52,95.448,5.236]
[1644671672943,4.89679025,95.519,95.446,24.6603]
[1644671673142,10.38279025,95.519,95.446,24.6603]
[1644671674551,5.486,95.519,95.446,24.6603]
[1644671674748,0.25,95.519,95.447,7.86966791]
[1644671674944,0.25,95.519,95.447,5.486]
[1644671675145,0.25,95.534,95.447,5.486]
[1644671675367,5.486,95.534,95.447,5.486]
[1644671675567,30.48029504,95.534,95.447,5.486]
[1644671675968,15.716,95.53,95.447,5.486]
[1644671676171,5.236,95.529,95.447,5.486]
[1644671676368,5.486,95.529,95.447,0.25]
[1644671676569,5.486,95.529,95.446,24.6603]
[1644671677572,15.7177,95.52,95.446,24.6603]
[1644671677773,5.486,95.519,95.447,0.25]
[1644671678070,5.236,95.56,95.45,15.14]
[1644671678270,5.236,95.566,95.451,0.25]
[1644671678472,5.235,95.562,95.451,2.63366791]
[1644671678871,23.96113764,95.561,95.452,2.38366791]
[1644671679269,5.235,95.56,95.453,0.25]
[1644671679671,0.25,95.559,95.454,2.38366791]
[1644671679873,0.25,95.559,95.47,15.7102]
[1644671680070,0.25,95.559,95.472,37.63665958]
[1644671680271,0.25,95.559,95.473,0.25]
[1644671681176,20.9473,95.56,95.473,0.25]
[1644671681772,2.38366791,95.559,95.472,37.63665958]
[1644671681973,5.234,95.558,95.472,37.63665958]
[1644671682377,15.713,95.55,95.472,37.63665958]
[1644671682576,5.234,95.549,95.472,37.63665958]
[1644671682775,7.86766791,95.549,95.472,37.63665958]
[1644671682978,5.32753411,95.548,95.472,37.63665958]
[1644671683175,5.235,95.547,95.472,37.63665958]
[1644671683377,2.9438662,95.546,95.472,37.63665958]
[1644671683578,5.32753411,95.546,95.472,37.63665958]
[1644671683777,15.7167,95.53,95.472,37.63665958]
[1644671683977,0.92504311,95.529,95.472,37.63665958]
[1644671684177,3.55871102,95.529,95.472,37.63665958]
[1644671684579,2.38366791,95.528,95.472,37.63665958]
[1644671684777,0.25,95.527,95.446,22.7954]
[1644671685178,2.63366791,95.527,95.446,22.7954]
[1644671685780,15.7172,95.52,95.447,41.24291981]
[1644671685979,15.7172,95.52,95.447,41.49291981]
[1644671686279,0.25,95.519,95.447,41.49291981]
[1644671686480,5.486,95.519,95.447,41.49291981]
[1644671686683,22.941,95.546,95.448,7.61966791]
[1644671686884,2.38366791,95.549,95.45,15.14]
[1644671687085,2.96879241,95.562,95.451,5.235]
[1644671687283,2.96879241,95.568,95.451,7.86866791]
[1644671687486,28.4051,95.569,95.451,7.86866791]
[1644671687683,28.4051,95.569,95.452,2.38366791]
[1644671687984,23.1701,95.569,95.453,5.235]
[1644671688183,23.1701,95.569,95.453,5.485]
[1644671688384,0.25,95.563,95.454,2.38366791]
[1644671688585,5.485,95.563,95.454,2.38366791]
[1644671688786,15.7115,95.56,95.47,15.7101]
[1644671688985,15.7115,95.56,95.471,56.88261185]
[1644671689197,5.234,95.559,95.471,59.51627976]
[1644671689401,2.96879241,95.586,95.472,2.38366791]
[1644671689598,2.94482733,95.589,95.473,5.234]
[1644671689796,5.232,95.589,95.473,5.484]
[1644671689999,5.232,95.589,95.474,2.38366791]
[1644671690198,15.7054,95.59,95.48,15.7079]
[1644671690398,5.232,95.589,95.49,15.14]
[1644671690598,5.232,95.589,95.491,83.53501992]
[1644671690799,15.7054,95.59,95.492,5.232]
[1644671691200,15.7054,95.59,95.493,0.25]
[1644671691401,15.7054,95.59,95.494,5.232]
[1644671691804,15.7054,95.59,95.5,15.7054]
[1644671692001,15.7054,95.59,95.5,30.8454]
[1644671692002,0.25,95.589,95.5,30.8454]
[1644671692201,0.25,95.589,95.501,5.482]
[1644671694613,5.232,95.588,95.501,5.482]
[1644671694815,0.25,95.587,95.501,5.482]
[1644671696217,5.482,95.589,95.501,5.482]
[1644671699819,5.482,95.589,95.501,7.86566791]
[1644671700919,0.25,95.589,95.501,7.86566791]
[1644671704431,0.25,95.589,95.501,5.232]
[1644671704830,15.7065,95.58,95.501,5.232]
[1644671705231,0.25,95.579,95.501,5.232]
[1644671705831,15.7041,95.6,95.51,15.7041]
[1644671706031,5.232,95.599,95.511,28.1744]
[1644671706234,5.232,95.599,95.511,30.80806791]
[1644671706446,5.232,95.599,95.512,2.38366791]
[1644671706634,5.232,95.618,95.513,45.01697583]
[1644671706837,5.232,95.606,95.513,45.26697583]
[1644671707035,5.232,95.606,95.514,2.38366791]
[1644671707232,5.232,95.606,95.515,5.482]
[1644671707233,0.25,95.605,95.515,5.482]
[1644671707435,0.25,95.605,95.53,15.14]
[1644671707635,0.25,95.605,95.531,68.04669259]
[1644671707841,0.25,95.605,95.531,68.29669259]
[1644671708836,5.231,95.604,95.531,68.04669259]
[1644671709035,17.16466791,95.604,95.531,68.04669259]
[1644671709242,0.25,95.603,95.531,68.04669259]
[1644671709438,5.231,95.602,95.531,68.04669259]
[1644671709737,0.25,95.601,95.531,68.04669259]
[1644671710337,0.25,95.601,95.532,0.25]
[1644671710537,0.25,95.601,95.531,68.04669259]
[1644671710739,23.31756791,95.6,95.531,68.04669259]
[1644671711137,2.63366791,95.599,95.531,68.04669259]
[1644671711340,5.232,95.598,95.531,68.04669259]
[1644671711542,5.232,95.598,95.532,0.25]
[1644671711740,0.25,95.597,95.532,0.25]
[1644671712845,0.25,95.605,95.532,0.25]
[1644671713042,5.232,95.596,95.532,0.25]
[1644671713244,0.25,95.595,95.532,0.25]
[1644671713442,5.232,95.604,95.532,0.25]
[1644671713642,0.25,95.603,95.532,0.25]
[1644671713841,5.231,95.602,95.532,0.25]
[1644671714041,15.703,95.6,95.532,0.25]
[1644671714241,5.481,95.599,95.532,0.25]
[1644671715242,5.481,95.599,95.533,2.38366791]
[1644671715443,0.25,95.599,95.533,2.38366791]
[1644671715642,0.25,95.599,95.534,0.25]
[1644671715847,0.25,95.606,95.533,5.232]
[1644671716043,23.2172,95.619,95.535,2.38366791]
[1644671716244,23.2172,95.619,95.54,15.699]
[1644671716444,23.2172,95.619,95.541,5.231]
[1644671716645,23.2172,95.619,95.541,7.86466791]
[1644671716849,23.2172,95.619,95.542,2.38366791]
[1644671717048,23.2172,95.619,95.543,29.0017]
[1644671717247,23.2172,95.619,95.543,29.2517]
[1644671717449,23.2172,95.619,95.544,2.38366791]
[1644671717648,0.25,95.618,95.545,5.231]
[1644671717848,0.25,95.618,95.55,15.6974]
[1644671718049,2.63366791,95.618,95.543,23.7707]
[1644671718451,29.03111297,95.618,95.543,23.7707]
[1644671719051,2.38366791,95.617,95.543,23.7707]
[1644671719249,3.20435324,95.616,95.543,23.7707]
[1644671719451,2.95435324,95.615,95.543,23.7707]
[1644671719651,2.38366791,95.615,95.543,23.7707]
[1644671719850,15.7013,95.61,95.543,23.7707]
[1644671720270,0.25,95.609,95.544,0.25]
[1644671722575,14.9513,95.61,95.544,0.25]
[1644671722775,5.231,95.609,95.544,0.25]
[1644671724275,0.25,95.608,95.544,0.25]
[1644671725777,0.25,95.609,95.544,0.25]
[1644671726187,0.25,95.609,95.545,2.38366791]
[1644671726377,0.25,95.618,95.545,2.38366791]
[1644671726580,0.25,95.618,95.546,0.25]
[1644671726981,0.25,95.618,95.547,2.38366791]
[1644671727184,0.25,95.618,95.55,15.6973]
[1644671727378,0.25,95.629,95.551,5.231]
[1644671727584,5.231,95.639,95.551,2.38366791]
[1644671727777,5.23,95.643,95.552,5.48]
[1644671727978,5.23,95.638,95.552,0.25]
[1644671728181,24.9511,95.642,95.553,5.23]
[1644671728480,5.23,95.637,95.553,5.23]
[1644671728681,26.60693067,95.636,95.554,0.25]
[1644671728879,31.83693067,95.636,95.554,22.8136]
[1644671729080,0.25,95.635,95.554,22.8136]
[1644671729279,8.18589677,95.634,95.555,0.25]
[1644671729582,2.95589677,95.633,95.555,0.25]
[1644671729784,5.23,95.632,95.555,0.25]
[1644671729980,2.95589677,95.631,95.555,0.25]
[1644671730182,5.23,95.63,95.555,0.25]
[1644671730382,2.95589677,95.629,95.555,0.25]
[1644671730584,15.7009,95.61,95.555,0.25]
[1644671730782,0.25,95.609,95.555,0.25]
[1644671735485,0.25,95.609,95.556,2.38366791]
[1644671735685,23.6607,95.629,95.557,0.25]
[1644671736086,23.6607,95.629,95.558,5.23]
[1644671736289,23.6607,95.629,95.559,0.25]
[1644671736489,23.6607,95.629,95.56,5.23]
[1644671736686,23.6607,95.629,95.561,42.50267887]
[1644671736891,23.6607,95.629,95.562,5.23]
[1644671737687,15.6993,95.62,95.562,5.23]
[1644671737886,15.6993,95.62,95.561,42.25267887]
[1644671738087,0.25,95.619,95.561,42.25267887]
[1644671739388,5.23,95.618,95.561,42.25267887]
[1644671739590,0.25,95.619,95.561,42.25267887]
[1644671739789,15.7008,95.61,95.561,42.25267887]
[1644671740191,0.25,95.609,95.562,0.25]
[1644671740591,23.6607,95.629,95.561,42.25267887]
[1644671740791,15.6992,95.62,95.561,42.25267887]
[1644671740992,35.00282564,95.619,95.561,42.25267887]
[1644671741792,29.77282564,95.619,95.554,22.5636]
[1644671741994,8.43687939,95.618,95.537,2.38366791]
[1644671742292,15.7009,95.61,95.539,22.9196]
[1644671742493,15.7009,95.61,95.54,5.231]
[1644671742692,15.7009,95.61,95.541,0.25]
[1644671742902,15.7009,95.61,95.542,5.231]
[1644671743291,15.7009,95.61,95.543,0.25]
[1644671743996,5.231,95.628,95.543,0.25]
[1644671744194,5.231,95.628,95.542,0.25]
[1644671744394,2.95686312,95.627,95.542,0.25]
[1644671744593,5.23,95.626,95.542,0.25]
[1644671744795,3.20686312,95.625,95.542,0.25]
[1644671744998,8.18786312,95.624,95.542,0.25]
[1644671745197,3.20686312,95.623,95.542,0.25]
[1644671745400,2.95686312,95.622,95.543,5.231]
[1644671745599,8.18786312,95.622,95.542,0.25]
[1644671745802,3.20686312,95.621,95.542,0.25]
[1644671746000,23.88756312,95.62,95.542,0.25]
[1644671746203,3.20686312,95.619,95.542,0.25]
[1644671746400,5.231,95.618,95.542,0.25]
[1644671746605,11.15665553,95.618,95.542,0.25]
[1644671746801,0.25,95.617,95.542,0.25]
[1644671746999,3.20686312,95.617,95.542,0.25]
[1644671747201,5.231,95.616,95.543,2.38366791]
[1644671747401,0.25,95.617,95.543,2.38366791]
[1644671747600,8.67602804,95.615,95.544,0.25]
[1644671747801,15.7022,95.61,95.542,0.25]
[1644671748201,0.25,95.609,95.543,5.231]
[1644671748405,5.481,95.609,95.542,0.25]
[1644671748602,0.25,95.609,95.543,5.231]
[1644671748803,0.25,95.609,95.544,0.25]
[1644671749002,0.25,95.609,95.545,5.231]
[1644671749205,0.25,95.609,95.546,0.25]
[1644671750206,15.7022,95.61,95.546,0.25]
[1644671751406,0.25,95.609,95.546,0.25]
[1644671751604,0.25,95.609,95.547,5.231]
[1644671751809,0.25,95.609,95.548,0.25]
[1644671752904,0.25,95.609,95.543,0.25]
[1644671753107,0.25,95.609,95.544,5.231]
[1644671753307,0.25,95.609,95.545,0.25]
[1644671754631,0.25,95.609,95.543,0.25]
[1644671755033,2.96879241,95.628,95.546,2.38366791]
[1644671755229,2.95873371,95.64,95.56,15.14]
[1644671755430,2.95873371,95.648,95.561,22.7319]
[1644671755631,24.79916522,95.647,95.562,34.72613102]
[1644671755832,2.95873371,95.646,95.563,0.25]
[1644671756030,22.5558,95.645,95.563,0.25]
[1644671756232,8.18773371,95.644,95.563,0.25]
[1644671756431,5.229,95.644,95.563,0.25]
[1644671756632,0.25,95.643,95.563,0.25]
[1644671756831,15.6959,95.64,95.564,2.38366791]
[1644671757034,2.96879241,95.653,95.565,0.25]
[1644671757234,0.25,95.639,95.565,5.479]
[1644671757431,0.25,95.639,95.565,0.25]
[1644671758233,15.6961,95.64,95.563,0.25]
[1644671758432,15.6961,95.64,95.563,5.48]
[1644671758634,5.23,95.652,95.563,5.48]
[1644671758835,2.95446873,95.651,95.563,5.48]
[1644671759035,22.572,95.653,95.563,5.48]
[1644671759036,2.95446873,95.652,95.563,5.48]
[1644671759438,2.95446873,95.652,95.564,2.38366791]
[1644671759836,15.6948,95.65,95.57,15.6943]
[1644671760236,0.25,95.649,95.571,0.25]
[1644671760436,0.25,95.649,95.571,5.479]
[1644671760637,0.25,95.649,95.572,24.9292]
[1644671760836,0.25,95.649,95.573,5.479]
[1644671764245,5.229,95.648,95.573,0.25]
[1644671764445,15.6961,95.64,95.573,0.25]
[1644671764647,5.229,95.639,95.573,0.25]
[1644671764845,5.479,95.639,95.573,0.25]
[1644671767549,5.479,95.639,95.572,24.9292]
[1644671767749,5.479,95.639,95.562,23.4053]
[1644671767750,15.698,95.63,95.562,23.4053]
[1644671767949,5.23,95.629,95.534,24.2974]
[1644671768150,7.86366791,95.629,95.534,24.2974]
[1644671768349,7.86366791,95.629,95.535,5.231]
[1644671768350,2.63366791,95.629,95.535,5.231]
[1644671768549,2.63366791,95.629,95.536,36.62443256]
[1644671768751,2.63366791,95.629,95.537,5.231]
[1644671768950,5.231,95.628,95.536,36.62443256]
[1644671769352,23.9908,95.627,95.537,0.25]
[1644671769551,1.47482977,95.612,95.537,0.25]
[1644671769755,15.7024,95.61,95.537,0.25]
[1644671770155,0.25,95.609,95.53,15.14]
[1644671770353,1.47482977,95.603,95.522,24.8222]
[1644671770553,1.47482977,95.596,95.522,24.8222]
[1644671770754,5.482,95.595,95.522,24.8222]
[1644671770956,15.7042,95.59,95.501,24.8979]
[1644671771161,1.47482977,95.583,95.494,38.08021637]
[1644671771355,1.47482977,95.579,95.476,1.48012177]
[1644671771554,1.47482977,95.573,95.47,1.48012177]
[1644671771756,1.72482977,95.572,95.469,1.48012177]
[1644671771955,1.47482977,95.571,95.468,1.48012177]
[1644671772157,15.7126,95.57,95.47,15.7106]
[1644671772361,32.0846,95.57,95.509,48.51869537]
[1644671772558,32.0846,95.57,95.515,0.25]
[1644671773857,0.25,95.569,95.515,0.25]
[1644671774058,5.232,95.568,95.515,0.25]
[1644671774259,15.7095,95.56,95.51,0.25]
[1644671774462,0.25,95.559,95.484,23.8879]
[1644671774660,5.484,95.559,95.484,23.8879]
[1644671774861,5.484,95.559,95.484,23.6379]
[1644671774862,0.25,95.559,95.484,23.6379]
[1644671775059,5.234,95.558,95.484,23.6379]
[1644671775258,0.25,95.557,95.484,61.65904439]
[1644671775460,5.234,95.556,95.484,61.65904439]
[1644671775661,15.7107,95.55,95.484,61.65904439]
[1644671776060,0.25,95.549,95.484,61.65904439]
[1644671776260,5.484,95.549,95.484,61.65904439]
[1644671776462,5.484,95.549,95.485,0.25]
[1644671776866,15.7125,95.54,95.485,0.25]
[1644671777062,5.234,95.539,95.485,0.25]
[1644671777260,5.484,95.539,95.485,0.25]
[1644671778162,0.25,95.539,95.485,5.234]
[1644671779162,0.25,95.539,95.484,38.02114439]
[1644671779363,5.234,95.538,95.484,38.02114439]
[1644671779564,5.234,95.538,95.485,0.25]
[1644671779765,0.25,95.537,95.485,0.25]
[1644671780165,0.25,95.537,95.472,0.25]
[1644671780786,0.25,95.538,95.472,0.25]
[1644671780989,0.25,95.538,95.472,38.64333351]
[1644671781189,0.25,95.539,95.473,2.38366791]
[1644671781589,0.25,95.539,95.474,5.485]
[1644671781788,0.25,95.559,95.474,5.485]
[1644671781989,5.484,95.559,95.474,0.25]
[1644671782794,0.25,95.559,95.48,15.7088]
[1644671782994,0.25,95.559,95.49,15.14]
[1644671783296,0.25,95.578,95.491,71.01575659]
[1644671783494,5.484,95.578,95.491,65.78175659]
[1644671783697,5.484,95.578,95.491,68.1654245]
[1644671783898,5.484,95.578,95.492,2.38366791]
[1644671784097,0.25,95.578,95.493,5.232]
[1644671784296,0.25,95.578,95.493,5.482]
[1644671784497,15.7075,95.57,95.494,2.38366791]
[1644671784698,15.7075,95.57,95.495,5.482]
[1644671785499,5.232,95.585,95.5,30.8457]
[1644671785699,5.232,95.595,95.501,0.25]
[1644671785901,5.232,95.602,95.501,2.63366791]
[1644671786098,24.1556,95.601,95.501,2.63366791]
[1644671786300,24.1556,95.601,95.501,0.25]
[1644671786799,0.25,95.6,95.501,0.25]
[1644671786999,5.232,95.599,95.501,0.25]
[1644671787199,15.7043,95.59,95.501,0.25]
[1644671787401,5.232,95.589,95.501,0.25]
[1644671787600,5.482,95.589,95.501,0.25]
[1644671787803,0.25,95.588,95.501,0.25]
[1644671788100,5.232,95.587,95.501,0.25]
[1644671788298,0.25,95.586,95.502,5.232]
[1644671788499,0.25,95.586,95.503,24.8945]
[1644671788700,5.232,95.585,95.504,0.25]
[1644671788903,15.7062,95.58,95.504,0.25]
[1644671789101,5.232,95.579,95.504,0.25]
[1644671789300,0.25,95.586,95.505,7.61566791]
[1644671789499,5.232,95.599,95.506,47.71783361]
[1644671789702,5.232,95.599,95.507,5.232]
[1644671789999,23.088,95.6,95.507,5.232]
[1644671790201,23.088,95.6,95.508,0.25]
[1644671790402,23.088,95.6,95.509,5.232]
[1644671790602,15.704,95.6,95.51,15.704]
[1644671790800,0.25,95.599,95.511,110.132]
[1644671791199,0.25,95.599,95.512,2.63366791]
[1644671791401,0.25,95.599,95.513,5.232]
[1644671791701,0.25,95.599,95.514,105.15]
[1644671791900,0.25,95.626,95.516,104.9]
[1644671792099,5.482,95.622,95.53,15.14]
[1644671792302,0.25,95.621,95.532,45.78807569]
[1644671792499,15.7007,95.62,95.54,15.699]
[1644671792701,0.25,95.619,95.541,5.481]
[1644671792901,5.481,95.619,95.541,5.481]
[1644671793102,5.481,95.619,95.541,7.86466791]
[1644671793299,5.481,95.619,95.542,2.38366791]
[1644671793500,5.481,95.619,95.543,24.2115]
[1644671793701,5.481,95.619,95.543,24.4615]
[1644671794905,3.943703,95.619,95.543,24.4615]
[1644671795105,0.25,95.618,95.543,24.4615]
[1644671795306,5.231,95.617,95.543,24.4615]
[1644671795608,15.701,95.61,95.543,24.4615]
[1644671795805,5.231,95.609,95.543,24.4615]
[1644671796008,0.25,95.618,95.543,24.4615]
[1644671796812,5.231,95.617,95.543,24.4615]
[1644671797208,0.25,95.616,95.543,24.4615]
[1644671797410,5.231,95.615,95.543,24.4615]
[1644671797810,0.25,95.614,95.543,24.4615]
[1644671798808,15.701,95.61,95.543,24.4615]
[1644671799008,15.701,95.61,95.543,0.25]
[1644671799208,5.481,95.609,95.532,45.78807569]
[1644671799409,1.47482977,95.599,95.532,45.78807569]
[1644671799714,1.47482977,95.596,95.531,5.231]
[1644671799912,1.47482977,95.596,95.499,5.232]
[1644671800109,1.47482977,95.596,95.498,24.9589]
[1644671800110,6.95682977,95.595,95.498,24.9589]
[1644671800312,6.95682977,95.595,95.499,5.232]
[1644671800511,6.95682977,95.595,95.499,5.482]
[1644671800714,15.7061,95.59,95.5,55.46866958]
[1644671800913,5.232,95.589,95.5,55.46866958]
[1644671801112,0.25,95.589,95.501,0.25]
[1644671801717,15.7062,95.58,95.501,0.25]
[1644671802114,0.25,95.579,95.51,15.704]
[1644671802316,0.25,95.579,95.511,23.3503]
[1644671803014,5.232,95.578,95.511,23.3503]
[1644671803219,0.25,95.577,95.511,23.3503]
[1644671803617,5.232,95.576,95.511,23.3503]
[1644671803817,0.25,95.575,95.511,23.3503]
[1644671804020,1.47482977,95.597,95.512,7.61566791]
[1644671804220,1.47482977,95.604,95.52,30.8423]
[1644671804418,1.47482977,95.619,95.521,5.232]
[1644671804719,1.47482977,95.629,95.521,7.86566791]
[1644671804923,1.47482977,95.632,95.522,124.75783089]
[1644671805121,1.47482977,95.651,95.531,0.48]
[1644671805320,1.47482977,95.651,95.54,15.14]
[1644671805525,1.47482977,95.655,95.541,51.526]
[1644671805723,2.96879241,95.681,95.541,51.526]
[1644671805724,1.47482977,95.654,95.541,51.776]
[1644671806020,1.47482977,95.652,95.542,2.38366791]
[1644671806221,15.6954,95.65,95.55,15.6972]
[1644671806420,5.23,95.649,95.56,15.14]
[1644671806621,5.48,95.649,95.543,39.3216239]
[1644671806821,1.47482977,95.645,95.543,39.3216239]
[1644671807120,1.47482977,95.636,95.543,39.3216239]
[1644671807321,15.7019,95.61,95.52,15.14]
[1644671807520,25.9219,95.61,95.511,5.232]
[1644671807722,7.86566791,95.609,95.512,0.25]
[1644671807922,7.86566791,95.609,95.51,30.8426]
[1644671808120,5.482,95.609,95.511,5.232]
[1644671808325,0.25,95.609,95.512,42.51515297]
[1644671808521,0.25,95.609,95.513,5.232]
[1644671808920,5.232,95.608,95.512,42.51515297]
[1644671809126,5.482,95.616,95.512,42.51515297]
[1644671809321,7.86566791,95.616,95.513,0.25]
[1644671809522,5.482,95.616,95.513,0.25]
[1644671809723,15.7032,95.6,95.513,0.25]
[1644671809925,5.232,95.599,95.513,0.25]
[1644671810231,5.232,95.614,95.513,0.25]
[1644671810423,0.25,95.598,95.513,0.25]
[1644671810623,5.232,95.597,95.513,0.25]
[1644671810825,0.25,95.596,95.513,0.25]
[1644671811021,5.232,95.595,95.513,0.25]
[1644671811223,0.25,95.594,95.513,0.25]
[1644671811430,5.232,95.593,95.513,0.25]
[1644671811628,15.7022,95.61,95.52,15.7022]
[1644671811823,1.47482977,95.622,95.53,15.14]
[1644671812025,1.47482977,95.628,95.53,15.14]
[1644671812223,0.25,95.627,95.531,2.63366791]
[1644671812622,0.25,95.627,95.531,0.25]
[1644671812825,1.47482977,95.625,95.531,0.25]
[1644671813025,1.47482977,95.626,95.532,5.231]
[1644671813226,1.47482977,95.626,95.533,0.25]
[1644671813227,0.25,95.624,95.533,0.25]
[1644671813430,0.25,95.624,95.533,25.0435]
[1644671813627,5.231,95.623,95.533,25.0435]
[1644671813828,15.6994,95.62,95.54,15.6981]
[1644671814043,15.6994,95.62,95.541,5.231]
[1644671814244,15.6994,95.62,95.542,44.5028444]
[1644671814446,0.25,95.619,95.543,5.231]
[1644671814646,0.25,95.619,95.543,5.481]
[1644671815648,0.25,95.619,95.543,0.25]
[1644671816745,5.481,95.619,95.543,0.25]
[1644671817644,1.47482977,95.634,95.551,104.9]
[1644671817851,1.47482977,95.634,95.56,15.14]
[1644671818045,1.47482977,95.646,95.561,23.4415]